fUSD/lending_fUSD_20260526
["ID","MTS","AMOUNT","RATE_DAILY","PERIOD"]
[423035567,1779780690000,-925.86,0.00039457,14]
[423035565,1779780690000,-154.0,0.00039457,120]
[423035571,1779780690000,-1075.86,0.00039457,14]
[423035572,1779780690000,-1075.86,0.00039457,14]
[423035569,1779780690000,-1075.86,0.00039457,14]
[423035566,1779780690000,-656.0,0.00039457,120]
[423035573,1779780690000,-1075.86,0.00039457,14]
[423035570,1779780690000,-1075.86,0.00039457,14]
[423035568,1779780690000,-1075.86,0.00039457,14]
[423035575,1779780690000,-1075.86,0.00039457,14]
[423035578,1779780690000,-1075.86,0.00039457,14]
[423035577,1779780690000,-1075.86,0.00039457,14]
[423035580,1779780690000,-1075.86,0.00039457,14]
[423035576,1779780690000,-1075.86,0.00039457,14]
[423035581,1779780690000,-1075.86,0.00039457,14]
[423035579,1779780690000,-1075.86,0.00039457,14]
[423035582,1779780690000,-1075.86,0.00039457,14]
[423035522,1779780690000,-50000.0,0.00039456,67]
[423035551,1779780690000,-316.31204444,0.00039456,120]
[423035558,1779780690000,-1000.0,0.00039456,120]
[423035583,1779780690000,-1075.86,0.00039457,14]
[423035555,1779780690000,-228.09496692,0.00039456,120]
[423035523,1779780690000,-317.04911567,0.00039456,120]
[423035525,1779780690000,-800.0,0.00039456,120]
[423035530,1779780690000,-800.0,0.00039456,120]
[423035528,1779780690000,-800.0,0.00039456,120]
[423035527,1779780690000,-800.0,0.00039456,120]
[423035529,1779780690000,-800.0,0.00039456,120]
[423035531,1779780690000,-800.0,0.00039456,120]
[423035534,1779780690000,-401.19763321,0.00039456,120]
[423035533,1779780690000,-304.70650092,0.00039456,120]
[423035538,1779780690000,-50000.0,0.00039456,71]
[423035536,1779780690000,-50000.0,0.00039456,69]
[423035535,1779780690000,-163.54315534,0.00039456,120]
[423035537,1779780690000,-50000.0,0.00039456,70]
[423035532,1779780690000,-411.01266406,0.00039456,120]
[423035540,1779780690000,-50000.0,0.00039456,73]
[423035553,1779780690000,-50000.0,0.00039456,60]
[423035539,1779780690000,-50000.0,0.00039456,72]
[423035552,1779780690000,-50000.0,0.00039456,61]
[423035545,1779780690000,-50000.0,0.00039456,76]
[423035543,1779780690000,-222.79007372,0.00039456,120]
[423035546,1779780690000,-50000.0,0.00039456,77]
[423035544,1779780690000,-301.19993548,0.00039456,120]
[423035557,1779780690000,-1000.0,0.00039456,120]
[423035541,1779780690000,-50000.0,0.00039456,74]
[423035548,1779780690000,-500.0,0.00039456,120]
[423035550,1779780690000,-268.26522692,0.00039456,120]
[423035549,1779780690000,-500.0,0.00039456,120]
[423035547,1779780690000,-50000.0,0.00039456,78]
[423035542,1779780690000,-50000.0,0.00039456,75]
[423035629,1779780691000,-1386.68,0.00039457,11]
[423035632,1779780691000,-300.0,0.00039457,15]
[423035626,1779780691000,-1386.68,0.00039457,11]
[423035621,1779780691000,-1386.68,0.00039457,11]
[423035614,1779780691000,-1386.68,0.00039457,11]
[423035619,1779780691000,-1386.68,0.00039457,11]
[423035618,1779780691000,-1386.68,0.00039457,11]
[423035617,1779780691000,-1386.68,0.00039457,11]
[423035612,1779780691000,-1386.68,0.00039457,11]
[423035624,1779780691000,-1386.68,0.00039457,11]
[423035616,1779780691000,-1386.68,0.00039457,11]
[423035615,1779780691000,-1386.68,0.00039457,11]
[423035633,1779780691000,-37337.36367028,0.00039457,7]
[423035625,1779780691000,-1386.68,0.00039457,11]
[423035628,1779780691000,-1386.68,0.00039457,11]
[423035631,1779780691000,-1386.80819512,0.00039457,11]
[423035623,1779780691000,-1386.68,0.00039457,11]
[423035630,1779780691000,-1386.68,0.00039457,11]
[423035627,1779780691000,-1386.68,0.00039457,11]
[423035634,1779780691000,-10307.49258306,0.00039457,7]
[423035646,1779780691000,-13724.19855671,0.00039457,2]
[423035637,1779780691000,-1688.62983588,0.00039457,18]
[423035644,1779780691000,-150.0,0.00039457,14]
[423035639,1779780691000,-8300.0,0.00039457,7]
[423035635,1779780691000,-244.63695327,0.00039457,2]
[423035611,1779780691000,-1386.68,0.00039457,11]
[423035622,1779780691000,-1386.68,0.00039457,11]
[423035609,1779780691000,-1386.68,0.00039457,11]
[423035597,1779780691000,-500.0,0.00039457,12]
[423035610,1779780691000,-1386.68,0.00039457,11]
[423035645,1779780691000,-506.98177283,0.00039457,5]
[423035585,1779780691000,-1075.86,0.00039457,14]
[423035586,1779780691000,-1075.86,0.00039457,14]
[423035584,1779780691000,-1075.86,0.00039457,14]
[423035587,1779780691000,-1075.86,0.00039457,14]
[423035588,1779780691000,-1075.86,0.00039457,14]
[423035589,1779780691000,-1075.86,0.00039457,14]
[423035590,1779780691000,-1076.03061297,0.00039457,14]
[423035591,1779780691000,-500.0,0.00039457,12]
[423035592,1779780691000,-500.0,0.00039457,12]
[423035594,1779780691000,-500.0,0.00039457,12]
[423035595,1779780691000,-500.0,0.00039457,12]
[423035613,1779780691000,-1386.68,0.00039457,11]
[423035596,1779780691000,-500.0,0.00039457,12]
[423035598,1779780691000,-500.0,0.00039457,12]
[423035600,1779780691000,-500.0,0.00039457,12]
[423035603,1779780691000,-500.0,0.00039457,12]
[423035602,1779780691000,-500.0,0.00039457,12]
[423035601,1779780691000,-500.0,0.00039457,12]
[423035604,1779780691000,-500.0,0.00039457,12]
[423035599,1779780691000,-500.0,0.00039457,12]
[423035606,1779780691000,-500.0,0.00039457,12]
[423035607,1779780691000,-163.79019896,0.00039457,12]
[423035608,1779780691000,-1386.68,0.00039457,11]
[423035605,1779780691000,-500.0,0.00039457,12]
[423035620,1779780691000,-1386.68,0.00039457,11]
[423035593,1779780691000,-500.0,0.00039457,12]
[423035638,1779780691000,-375.68963207,0.00039457,14]
[423035695,1779780691000,-3327.96378749,0.00039457,2]
[423035640,1779780691000,-232.33122327,0.00039457,2]
[423035681,1779780691000,-222462.54320342,0.00039457,2]
[423035674,1779780691000,-1056.71031038,0.00039457,2]
[423035672,1779780691000,-992.20222295,0.00039457,2]
[423035676,1779780691000,-503.78586462,0.00039457,2]
[423035675,1779780691000,-5329.40621653,0.00039457,2]
[423035679,1779780691000,-3947.24876373,0.00039457,12]
[423035680,1779780691000,-2775.93079567,0.00039457,2]
[423035683,1779780691000,-1721.8670338,0.00039457,2]
[423035693,1779780691000,-2036.59065809,0.00039457,4]
[423035682,1779780691000,-155.31690201,0.00039457,2]
[423035684,1779780691000,-1015.14959799,0.00039457,5]
[423035685,1779780691000,-255.74214375,0.00039457,2]
[423035673,1779780691000,-1560.32257578,0.00039457,2]
[423035686,1779780691000,-15905.22173022,0.00039457,3]
[423035688,1779780691000,-1294.76530302,0.00039457,2]
[423035691,1779780691000,-1221.0,0.00039457,4]
[423035690,1779780691000,-500.0,0.00039457,5]
[423035689,1779780691000,-600.0,0.00039457,5]
[423035692,1779780691000,-15419.27326276,0.00039457,3]
[423035694,1779780691000,-269712.92193784,0.00039457,2]
[423035697,1779780691000,-15198.66792525,0.00039457,2]
[423035696,1779780691000,-179.93967694,0.00039457,2]
[423035636,1779780691000,-514201.42241408,0.00039457,2]
[423035698,1779780691000,-550.0,0.00039457,2]
[423035700,1779780691000,-15347.97892813,0.00039457,2]
[423035699,1779780691000,-11001.98202015,0.00039457,2]
[423035687,1779780691000,-500.0,0.00039457,2]
[423035671,1779780691000,-2876.47779123,0.00039457,2]
[423035701,1779780691000,-234.51172204,0.00039457,2]
[423035678,1779780691000,-2522.69166419,0.00039457,2]
[423035642,1779780691000,-3105.47753269,0.00039457,5]
[423035643,1779780691000,-2920.0,0.00039457,15]
[423035641,1779780691000,-44206.90150758,0.00039457,15]
[423035647,1779780691000,-201.54557759,0.00039457,2]
[423035648,1779780691000,-1531.12753152,0.00039457,2]
[423035656,1779780691000,-500.0,0.00039457,2]
[423035650,1779780691000,-20000.0,0.00039457,2]
[423035677,1779780691000,-1527.85050778,0.00039457,2]
[423035653,1779780691000,-10000.0,0.00039457,3]
[423035654,1779780691000,-1146.01904734,0.00039457,2]
[423035657,1779780691000,-318.52768,0.00039457,2]
[423035649,1779780691000,-379.0,0.00039457,2]
[423035651,1779780691000,-468.38907193,0.00039457,2]
[423035652,1779780691000,-160.75591245,0.00039457,2]
[423035659,1779780691000,-18000.0,0.00039457,2]
[423035670,1779780691000,-357.47162198,0.00039457,2]
[423035655,1779780691000,-180.0,0.00039457,2]
[423035664,1779780691000,-125466.8188612,0.00039457,2]
[423035667,1779780691000,-52341.29400735,0.00039457,2]
[423035662,1779780691000,-207692.09241112,0.00039457,2]
[423035669,1779780691000,-2063.26655504,0.00039457,5]
[423035663,1779780691000,-172437.01663967,0.00039457,2]
[423035665,1779780691000,-10999.01656025,0.00039457,3]
[423035658,1779780691000,-410.09914886,0.00039457,2]
[423035661,1779780691000,-585.50172811,0.00039457,5]
[423035668,1779780691000,-721.47352341,0.00039457,2]
[423035660,1779780691000,-401.53115511,0.00039457,2]
[423035666,1779780691000,-1210.0,0.00039457,2]
[423035742,1779780692000,-289.9005495,0.00039457,2]
[423035739,1779780692000,-207.94317375,0.00039457,2]
[423035737,1779780692000,-20853.01145897,0.00039457,2]
[423035738,1779780692000,-2501.75473528,0.00039457,2]
[423035736,1779780692000,-412.62204166,0.00039457,2]
[423035730,1779780692000,-1882.50227054,0.00039457,2]
[423035734,1779780692000,-30916.27889347,0.00039457,2]
[423035743,1779780692000,-5846.43821607,0.00039457,2]
[423035732,1779780692000,-1146.10055271,0.00039457,2]
[423035733,1779780692000,-5394.54018571,0.00039457,4]
[423035735,1779780692000,-280.07532758,0.00039457,2]
[423035740,1779780692000,-885.02290407,0.00039457,2]
[423035752,1779780692000,-204.48428619,0.00039457,2]
[423035746,1779780692000,-472.16403927,0.00039457,2]
[423035744,1779780692000,-2229.1175612,0.00039457,2]
[423035745,1779780692000,-898.14843768,0.00039457,2]
[423035755,1779780692000,-500.0,0.00039457,14]
[423035749,1779780692000,-12988.46801065,0.00039457,2]
[423035748,1779780692000,-610.0,0.00039457,2]
[423035751,1779780692000,-518.88523053,0.00039457,2]
[423035754,1779780692000,-174789.89428375,0.00039457,2]
[423035747,1779780692000,-150.0,0.00039457,2]
[423035750,1779780692000,-363.25575009,0.00039457,2]
[423035753,1779780692000,-761.30579625,0.00039457,2]
[423035728,1779780692000,-12575.31457074,0.00039457,2]
[423035741,1779780692000,-1262.60003585,0.00039457,5]
[423035729,1779780692000,-15213.57585969,0.00039457,2]
[423035717,1779780692000,-1100.0,0.00039457,2]
[423035722,1779780692000,-1626.73166691,0.00039457,2]
[423035757,1779780692000,-216.19,0.00039457,14]
[423035705,1779780692000,-384.46382981,0.00039457,2]
[423035704,1779780692000,-6000.0,0.00039457,2]
[423035702,1779780692000,-177.97519329,0.00039457,2]
[423035703,1779780692000,-502.01044095,0.00039457,3]
[423035707,1779780692000,-1058.41907446,0.00039457,2]
[423035706,1779780692000,-1309.76720102,0.00039457,2]
[423035708,1779780692000,-677.99006367,0.00039457,2]
[423035709,1779780692000,-8002.08517572,0.00039457,2]
[423035711,1779780692000,-227.14709462,0.00039457,5]
[423035710,1779780692000,-641.9242815,0.00039457,2]
[423035714,1779780692000,-500.0,0.00039457,7]
[423035713,1779780692000,-1093.15751988,0.00039457,2]
[423035712,1779780692000,-220.0658023,0.00039457,2]
[423035718,1779780692000,-3927.19777861,0.00039457,2]
[423035716,1779780692000,-350.58131682,0.00039457,2]
[423035720,1779780692000,-493.53688799,0.00039457,2]
[423035715,1779780692000,-2500.0,0.00039457,2]
[423035719,1779780692000,-934.78453033,0.00039457,2]
[423035721,1779780692000,-631.28406777,0.00039457,2]
[423035724,1779780692000,-561.92725155,0.00039457,2]
[423035727,1779780692000,-2260.1878742,0.00039457,2]
[423035723,1779780692000,-1123.74670825,0.00039457,5]
[423035726,1779780692000,-373.8759658,0.00039457,2]
[423035725,1779780692000,-1036.90724712,0.00039457,2]
[423035731,1779780692000,-7050.30270093,0.00039457,4]
[423035767,1779780692000,-500.0,0.00039457,14]
[423035756,1779780692000,-500.0,0.00039457,14]
[423035762,1779780692000,-159.50512805,0.00039457,14]
[423035791,1779780692000,-1069.89417624,0.00039457,2]
[423035786,1779780692000,-558.93691111,0.00039457,2]
[423035787,1779780692000,-167.09713929,0.00039457,14]
[423035790,1779780692000,-133561.85765375,0.00039457,15]
[423035788,1779780692000,-253.41768126,0.00039457,11]
[423035797,1779780692000,-23559.45048563,0.00039457,2]
[423035794,1779780692000,-1347.23054922,0.00039457,2]
[423035795,1779780692000,-3519.15013064,0.00039457,2]
[423035804,1779780692000,-588.54465786,0.00039457,2]
[423035799,1779780692000,-13201.97453864,0.00039457,2]
[423035798,1779780692000,-767.81674734,0.00039457,2]
[423035801,1779780692000,-5041.19194653,0.00039457,2]
[423035806,1779780692000,-34444.70699262,0.00039457,2]
[423035805,1779780692000,-58986.1680673,0.00039457,2]
[423035800,1779780692000,-189.03672535,0.00039457,2]
[423035796,1779780692000,-2257.69423904,0.00039457,2]
[423035803,1779780692000,-996.83892671,0.00039457,2]
[423035808,1779780692000,-400.0,0.00039457,7]
[423035807,1779780692000,-379.16327009,0.00039457,12]
[423035809,1779780692000,-400.0,0.00039457,7]
[423035810,1779780692000,-238.097813,0.00039457,7]
[423035812,1779780692000,-500.0,0.00039457,14]
[423035811,1779780692000,-2024.73966973,0.00039457,2]
[423035814,1779780692000,-500.0,0.00039457,14]
[423035813,1779780692000,-500.0,0.00039457,14]
[423035785,1779780692000,-1028.26836025,0.00039457,15]
[423035789,1779780692000,-2016.0,0.00039457,12]
[423035802,1779780692000,-643.0,0.00039457,2]
[423035784,1779780692000,-480.00000048,0.00039457,14]
[423035783,1779780692000,-500.0,0.00039457,14]
[423035763,1779780692000,-176.67080056,0.00039457,12]
[423035764,1779780692000,-293.32774613,0.00039457,2]
[423035759,1779780692000,-155.30315274,0.00039457,11]
[423035758,1779780692000,-156.36519488,0.00039457,14]
[423035765,1779780692000,-40158.67411065,0.00039457,10]
[423035766,1779780692000,-500.0,0.00039457,14]
[423035760,1779780692000,-4970.02117645,0.00039457,3]
[423035768,1779780692000,-500.0,0.00039457,14]
[423035775,1779780692000,-500.0,0.00039457,14]
[423035774,1779780692000,-500.0,0.00039457,14]
[423035770,1779780692000,-500.0,0.00039457,14]
[423035776,1779780692000,-500.0,0.00039457,14]
[423035761,1779780692000,-3522.0,0.00039457,7]
[423035793,1779780692000,-9503.73345889,0.00039457,2]
[423035772,1779780692000,-500.0,0.00039457,14]
[423035781,1779780692000,-500.0,0.00039457,14]
[423035792,1779780692000,-560.09414505,0.00039457,2]
[423035782,1779780692000,-500.0,0.00039457,14]
[423035777,1779780692000,-500.0,0.00039457,14]
[423035780,1779780692000,-500.0,0.00039457,14]
[423035769,1779780692000,-500.0,0.00039457,14]
[423035773,1779780692000,-500.0,0.00039457,14]
[423035771,1779780692000,-500.0,0.00039457,14]
[423035779,1779780692000,-500.0,0.00039457,14]
[423035778,1779780692000,-500.0,0.00039457,14]
[423035852,1779780693000,-1484.97,0.00039457,10]
[423035849,1779780693000,-1484.97,0.00039457,10]
[423035850,1779780693000,-1484.97,0.00039457,10]
[423035851,1779780693000,-1484.97,0.00039457,10]
[423035853,1779780693000,-1484.97,0.00039457,10]
[423035846,1779780693000,-1484.97,0.00039457,10]
[423035856,1779780693000,-1484.97,0.00039457,10]
[423035848,1779780693000,-1484.97,0.00039457,10]
[423035847,1779780693000,-1484.97,0.00039457,10]
[423035855,1779780693000,-1484.97,0.00039457,10]
[423035858,1779780693000,-1484.97,0.00039457,10]
[423035854,1779780693000,-1484.97,0.00039457,10]
[423035867,1779780693000,-318.784,0.00039457,2]
[423035872,1779780693000,-318.784,0.00039457,2]
[423035859,1779780693000,-1484.97,0.00039457,10]
[423035869,1779780693000,-318.784,0.00039457,2]
[423035868,1779780693000,-318.784,0.00039457,2]
[423035860,1779780693000,-1484.97,0.00039457,10]
[423035862,1779780693000,-1484.97,0.00039457,10]
[423035865,1779780693000,-1485.10067411,0.00039457,10]
[423035861,1779780693000,-1484.97,0.00039457,10]
[423035863,1779780693000,-1484.97,0.00039457,10]
[423035864,1779780693000,-1484.97,0.00039457,10]
[423035866,1779780693000,-446.127217,0.00039457,2]
[423035870,1779780693000,-318.784,0.00039457,2]
[423035845,1779780693000,-1484.97,0.00039457,10]
[423035857,1779780693000,-1484.97,0.00039457,10]
[423035839,1779780693000,-641.21721473,0.00039457,2]
[423035819,1779780693000,-6366.95567276,0.00039457,2]
[423035844,1779780693000,-1484.97,0.00039457,10]
[423035873,1779780693000,-547.699932,0.00039457,2]
[423035818,1779780693000,-209.71859936,0.00039457,7]
[423035817,1779780693000,-249.88317413,0.00039457,11]
[423035815,1779780693000,-500.0,0.00039457,14]
[423035822,1779780693000,-439.80414909,0.00039457,7]
[423035820,1779780693000,-54866.08135998,0.00039457,20]
[423035831,1779780693000,-478.0,0.00039457,2]
[423035821,1779780693000,-828.01239762,0.00039457,2]
[423035832,1779780693000,-184.67314381,0.00039457,10]
[423035828,1779780693000,-500.0,0.00039457,2]
[423035824,1779780693000,-500.0,0.00039457,2]
[423035830,1779780693000,-500.0,0.00039457,2]
[423035834,1779780693000,-500.0,0.00039457,2]
[423035826,1779780693000,-500.0,0.00039457,2]
[423035823,1779780693000,-500.0,0.00039457,2]
[423035829,1779780693000,-500.0,0.00039457,2]
[423035825,1779780693000,-500.0,0.00039457,2]
[423035840,1779780693000,-1094.44170147,0.00039457,2]
[423035833,1779780693000,-5255.17396108,0.00039457,10]
[423035841,1779780693000,-148437.54535284,0.00039457,5]
[423035842,1779780693000,-1484.97,0.00039457,10]
[423035836,1779780693000,-358.78278527,0.00039457,2]
[423035838,1779780693000,-7582.71998152,0.00039457,10]
[423035843,1779780693000,-1484.97,0.00039457,10]
[423035837,1779780693000,-1157.18100299,0.00039457,10]
[423035835,1779780693000,-500.0,0.00039457,2]
[423035827,1779780693000,-500.0,0.00039457,2]
[423035879,1779780693000,-500.0,0.00039457,2]
[423035816,1779780693000,-203.35841568,0.00039457,14]
[423035874,1779780693000,-155.82393236,0.00039457,14]
[423035908,1779780693000,-4537.76864323,0.00039457,30]
[423035916,1779780693000,-500.0,0.00039457,120]
[423035911,1779780693000,-500.0,0.00039457,120]
[423035905,1779780693000,-467.58243286,0.00039457,120]
[423035913,1779780693000,-500.0,0.00039457,120]
[423035912,1779780693000,-500.0,0.00039457,120]
[423035909,1779780693000,-338.97965741,0.00039457,14]
[423035914,1779780693000,-500.0,0.00039457,120]
[423035910,1779780693000,-632.79569911,0.00039457,120]
[423035915,1779780693000,-500.0,0.00039457,120]
[423035917,1779780693000,-509.73770092,0.00039457,120]
[423035919,1779780693000,-476.73476584,0.00039457,120]
[423035921,1779780693000,-500.0,0.00039457,120]
[423035926,1779780693000,-570.88480296,0.00039457,120]
[423035922,1779780693000,-500.0,0.00039457,120]
[423035927,1779780693000,-500.0,0.00039457,2]
[423035924,1779780693000,-500.0,0.00039457,120]
[423035925,1779780693000,-500.0,0.00039457,120]
[423035918,1779780693000,-500.0,0.00039457,2]
[423035920,1779780693000,-500.0,0.00039457,120]
[423035923,1779780693000,-500.0,0.00039457,120]
[423035928,1779780693000,-500.0,0.00039457,2]
[423035930,1779780693000,-500.0,0.00039457,2]
[423035929,1779780693000,-500.0,0.00039457,2]
[423035931,1779780693000,-500.0,0.00039457,2]
[423035933,1779780693000,-500.0,0.00039457,2]
[423035875,1779780693000,-171.67424972,0.00039457,14]
[423035906,1779780693000,-223.25205222,0.00039457,120]
[423035907,1779780693000,-6636.32963133,0.00039457,30]
[423035932,1779780693000,-500.0,0.00039457,2]
[423035903,1779780693000,-3227.99543048,0.00039457,30]
[423035904,1779780693000,-169.99918085,0.00039457,120]
[423035880,1779780693000,-500.0,0.00039457,2]
[423035876,1779780693000,-261.88508573,0.00039457,11]
[423035878,1779780693000,-500.0,0.00039457,2]
[423035881,1779780693000,-500.0,0.00039457,2]
[423035877,1779780693000,-179.8542667,0.00039457,2]
[423035883,1779780693000,-500.0,0.00039457,2]
[423035893,1779780693000,-223.78408092,0.00039457,120]
[423035887,1779780693000,-1366956.0,0.00039457,120]
[423035885,1779780693000,-385.23750625,0.00039457,60]
[423035884,1779780693000,-501.96047427,0.00039457,2]
[423035882,1779780693000,-500.0,0.00039457,2]
[423035889,1779780693000,-467.59598483,0.00039457,120]
[423035871,1779780693000,-318.784,0.00039457,2]
[423035892,1779780693000,-308.2341361,0.00039457,120]
[423035895,1779780693000,-226.22404465,0.00039457,30]
[423035902,1779780693000,-100188.79530639,0.00039457,60]
[423035897,1779780693000,-5190.98030764,0.00039457,30]
[423035898,1779780693000,-242.40730344,0.00039457,120]
[423035890,1779780693000,-2765.3711038,0.00039457,120]
[423035899,1779780693000,-230.56989526,0.00039457,120]
[423035901,1779780693000,-5181.85418413,0.00039457,30]
[423035900,1779780693000,-6863.39099693,0.00039457,45]
[423035894,1779780693000,-177.68257929,0.00039457,120]
[423035891,1779780693000,-215.85659791,0.00039457,20]
[423035886,1779780693000,-3141.0167323,0.00039457,60]
[423035888,1779780693000,-1195.4473749,0.00039457,120]
[423035896,1779780693000,-5087.48305811,0.00039457,30]
[423035973,1779780694000,-532.0,0.00039457,120]
[423035971,1779780694000,-532.0,0.00039457,120]
[423035968,1779780694000,-532.0,0.00039457,120]
[423035969,1779780694000,-532.0,0.00039457,120]
[423035975,1779780694000,-532.0,0.00039457,120]
[423035976,1779780694000,-532.0,0.00039457,120]
[423035966,1779780694000,-532.0,0.00039457,120]
[423035964,1779780694000,-532.0,0.00039457,120]
[423035977,1779780694000,-532.0,0.00039457,120]
[423035965,1779780694000,-532.0,0.00039457,120]
[423035967,1779780694000,-532.0,0.00039457,120]
[423035972,1779780694000,-532.0,0.00039457,120]
[423035980,1779780694000,-532.0,0.00039457,120]
[423035974,1779780694000,-532.0,0.00039457,120]
[423035978,1779780694000,-532.0,0.00039457,120]
[423035982,1779780694000,-532.0,0.00039457,120]
[423035985,1779780694000,-532.0,0.00039457,120]
[423035981,1779780694000,-532.0,0.00039457,120]
[423035983,1779780694000,-532.0,0.00039457,120]
[423035984,1779780694000,-532.0,0.00039457,120]
[423035979,1779780694000,-532.0,0.00039457,120]
[423035987,1779780694000,-500.0,0.00039457,120]
[423035988,1779780694000,-540.02706778,0.00039457,120]
[423035961,1779780694000,-500.0,0.00039457,120]
[423035986,1779780694000,-532.08645749,0.00039457,120]
[423035970,1779780694000,-532.0,0.00039457,120]
[423035958,1779780694000,-245.21166562,0.00039457,120]
[423035945,1779780694000,-500.0,0.00039457,120]
[423035960,1779780694000,-500.0,0.00039457,120]
[423035990,1779780694000,-558.78,0.00039457,120]
[423035935,1779780694000,-500.0,0.00039457,120]
[423035934,1779780694000,-500.0,0.00039457,120]
[423035937,1779780694000,-500.0,0.00039457,120]
[423035936,1779780694000,-500.0,0.00039457,120]
[423035938,1779780694000,-500.0,0.00039457,120]
[423035941,1779780694000,-418.0,0.00039457,120]
[423035940,1779780694000,-512.96086392,0.00039457,120]
[423035944,1779780694000,-500.0,0.00039457,120]
[423035951,1779780694000,-500.0,0.00039457,120]
[423035942,1779780694000,-500.0,0.00039457,120]
[423035946,1779780694000,-500.0,0.00039457,120]
[423035948,1779780694000,-500.0,0.00039457,120]
[423035947,1779780694000,-500.0,0.00039457,120]
[423035943,1779780694000,-500.0,0.00039457,120]
[423035950,1779780694000,-500.0,0.00039457,120]
[423035949,1779780694000,-500.0,0.00039457,120]
[423035952,1779780694000,-246.077224,0.00039457,120]
[423035954,1779780694000,-183.67671383,0.00039457,120]
[423035953,1779780694000,-500.0,0.00039457,120]
[423035955,1779780694000,-309.86727493,0.00039457,120]
[423035956,1779780694000,-537.94,0.00039457,120]
[423035962,1779780694000,-622.30406994,0.00039457,120]
[423035963,1779780694000,-532.0,0.00039457,120]
[423035959,1779780694000,-2996.51641127,0.00039457,120]
[423035957,1779780694000,-205800.0,0.00039457,120]
[423035989,1779780694000,-558.78,0.00039457,120]
[423035939,1779780694000,-500.0,0.00039457,120]
[423035991,1779780694000,-558.78,0.00039457,120]
[423036026,1779780694000,-500.0,0.00039457,120]
[423036024,1779780694000,-500.0,0.00039457,120]
[423036018,1779780694000,-536.03251442,0.00039457,120]
[423036023,1779780694000,-500.0,0.00039457,120]
[423036027,1779780694000,-500.0,0.00039457,120]
[423036025,1779780694000,-500.0,0.00039457,120]
[423036022,1779780694000,-500.0,0.00039457,120]
[423036020,1779780694000,-500.0,0.00039457,120]
[423036031,1779780694000,-490.2789834,0.00039457,2]
[423036034,1779780694000,-500.0,0.00039457,120]
[423036033,1779780694000,-500.0,0.00039457,120]
[423036043,1779780694000,-500.0,0.00039457,120]
[423036028,1779780694000,-500.0,0.00039457,120]
[423036032,1779780694000,-174.37104011,0.00039457,120]
[423036038,1779780694000,-500.0,0.00039457,120]
[423036040,1779780694000,-500.0,0.00039457,120]
[423036042,1779780694000,-634.14654416,0.00039457,120]
[423036039,1779780694000,-265.72731112,0.00039457,120]
[423036037,1779780694000,-500.0,0.00039457,120]
[423036041,1779780694000,-500.0,0.00039457,120]
[423036045,1779780694000,-500.0,0.00039457,120]
[423036044,1779780694000,-500.0,0.00039457,120]
[423036046,1779780694000,-500.0,0.00039457,120]
[423036047,1779780694000,-500.0,0.00039457,120]
[423036048,1779780694000,-500.0,0.00039457,120]
[423035992,1779780694000,-558.78,0.00039457,120]
[423036035,1779780694000,-500.0,0.00039457,120]
[423036021,1779780694000,-500.0,0.00039457,120]
[423036036,1779780694000,-500.0,0.00039457,120]
[423036029,1779780694000,-200.90982552,0.00039457,120]
[423036030,1779780694000,-745.6175,0.00039457,120]
[423036005,1779780694000,-558.78,0.00039457,120]
[423036004,1779780694000,-558.78,0.00039457,120]
[423035993,1779780694000,-558.78,0.00039457,120]
[423035996,1779780694000,-558.78,0.00039457,120]
[423036000,1779780694000,-558.78,0.00039457,120]
[423035997,1779780694000,-558.78,0.00039457,120]
[423035999,1779780694000,-558.78,0.00039457,120]
[423036002,1779780694000,-558.78,0.00039457,120]
[423035995,1779780694000,-558.78,0.00039457,120]
[423035998,1779780694000,-558.78,0.00039457,120]